bitfinex/quotes_BTCUSD_20241103
["timestamp","ask_amount","ask_price","bid_price","bid_amount"]
[1730612654916,0.1650574,68605.0,68604.0,0.25487467]
[1730612659714,0.129552,68605.0,68604.0,0.247764]
[1730612659871,0.16506434,68605.0,68604.0,0.25487949]
[1730612661597,0.16506592,68605.0,68604.0,0.25487971]
[1730612663448,0.129552,68605.0,68604.0,0.25487971]
[1730612663654,0.16507086,68605.0,68604.0,0.25487971]
[1730612667439,0.16507086,68605.0,68604.0,0.25488422]
[1730612671209,0.16510076,68605.0,68604.0,0.247764]
[1730612671431,0.16510076,68605.0,68604.0,0.1091227]
[1730612671666,0.16510134,68605.0,68604.0,0.25488681]
[1730612671875,0.34970099,68605.0,68604.0,0.00912281]
[1730612672082,0.3183955,68605.0,68604.0,0.002]
[1730612672963,0.3183955,68605.0,68604.0,0.001]
[1730612673167,0.3213955,68605.0,68604.0,0.001]
[1730612673550,0.002,68600.0,68598.0,0.22614728]
[1730612673793,0.13917282,68599.0,68598.0,0.22614728]
[1730612674000,0.13917282,68599.0,68597.0,0.145777]
[1730612674001,0.002,68598.0,68597.0,0.00712281]
[1730612674220,0.002,68597.0,68596.0,0.25290181]
[1730612674433,0.03754934,68597.0,68596.0,0.39157604]
[1730612674881,0.03754934,68597.0,68596.0,0.39869885]
[1730612675079,0.03751106,68597.0,68596.0,0.39869307]
[1730612675280,0.03751106,68597.0,68596.0,0.39157604]
[1730612675543,0.03751106,68597.0,68596.0,0.245779]
[1730612675751,0.03751106,68597.0,68596.0,0.246779]
[1730612677288,0.03751106,68597.0,68596.0,0.247779]
[1730612677718,0.03751106,68597.0,68596.0,0.002]
[1730612677948,0.03751106,68597.0,68596.0,0.102]
[1730612678369,0.03751106,68597.0,68596.0,0.247781]
[1730612678794,0.0156581,68597.0,68596.0,0.247781]
[1730612678907,0.03748659,68597.0,68596.0,0.247781]
[1730612679953,0.03748659,68597.0,68596.0,0.147781]
[1730612680825,0.03748659,68597.0,68596.0,0.002]
[1730612683217,0.03747252,68597.0,68596.0,0.002]
[1730612686664,0.01564103,68597.0,68596.0,0.002]
[1730612686863,0.05110772,68597.0,68596.0,0.002]
[1730612687317,0.19688572,68597.0,68596.0,0.002]
[1730612687517,0.25913218,68597.0,68596.0,0.002]
[1730612688334,0.2065373,68597.0,68596.0,0.001]
[1730612688512,0.002,68592.0,68591.0,0.46481547]
[1730612688697,0.03746669,68592.0,68591.0,0.46481547]
[1730612688891,0.03746669,68592.0,68591.0,0.245791]
[1730612689337,0.03746669,68592.0,68591.0,0.145791]
[1730612690980,0.31328885,68592.0,68591.0,0.001]
[1730612691203,0.31328885,68592.0,68591.0,0.002]
[1730612691660,0.31828885,68592.0,68591.0,0.001]
[1730612692176,0.002,68589.0,68586.0,0.001638]
[1730612692401,0.291588,68590.0,68586.0,0.001638]
[1730612692402,0.1478,68587.0,68586.0,0.001638]
[1730612692609,0.18379985,68587.0,68586.0,0.001638]
[1730612693050,0.31329985,68587.0,68586.0,0.001638]
[1730612693741,0.31329985,68587.0,68586.0,0.002638]
[1730612694431,0.27783316,68587.0,68586.0,0.001638]
[1730612694669,0.31327242,68587.0,68586.0,0.001638]
[1730612694884,0.31327242,68587.0,68586.0,0.002638]
[1730612695545,0.31827242,68587.0,68586.0,0.003638]
[1730612696399,0.31827242,68587.0,68586.0,0.002638]
[1730612696832,0.31927242,68587.0,68586.0,0.002638]
[1730612697270,0.31827242,68587.0,68586.0,0.002638]
[1730612697718,0.3192606,68587.0,68586.0,0.002638]
[1730612697933,0.3192606,68587.0,68586.0,0.001638]
[1730612698157,0.3182606,68587.0,68586.0,0.001638]
[1730612698371,0.28383316,68587.0,68586.0,0.001638]
[1730612698633,0.32126435,68587.0,68586.0,0.001638]
[1730612698811,0.32026435,68587.0,68586.0,0.001638]
[1730612699010,0.32226435,68587.0,68586.0,0.001638]
[1730612700127,0.17646435,68587.0,68586.0,0.001638]
[1730612701229,0.14103316,68587.0,68586.0,0.001638]
[1730612701436,0.17646882,68587.0,68586.0,0.001638]
[1730612702472,0.32226882,68587.0,68586.0,0.001638]
[1730612705125,0.28683316,68587.0,68586.0,0.001638]
[1730612705333,0.32228217,68587.0,68586.0,0.001638]
[1730612705506,0.34409886,68587.0,68586.0,0.001638]
[1730612706088,0.32228408,68587.0,68586.0,0.001638]
[1730612707675,0.3222844,68587.0,68586.0,0.001638]
[1730612710686,0.32228585,68587.0,68586.0,0.001638]
[1730612712987,0.32310485,68587.0,68586.0,0.001638]
[1730612713220,0.34583093,68587.0,68586.0,0.001638]
[1730612713441,0.32310478,68587.0,68586.0,0.001638]
[1730612714786,0.32310174,68587.0,68586.0,0.001638]
[1730612724478,0.28765216,68587.0,68586.0,0.001638]
[1730612724643,0.3231239,68587.0,68586.0,0.001638]
[1730612728185,0.45178858,68587.0,68586.0,0.001638]
[1730612728632,0.3231239,68587.0,68586.0,0.001638]
[1730612728856,0.3094821,68587.0,68586.0,0.001638]
[1730612729153,0.32312607,68587.0,68586.0,0.001638]
[1730612734695,0.40188596,68587.0,68586.0,0.001638]
[1730612734909,0.45050913,68587.0,68586.0,0.001638]
[1730612735131,0.32812607,68587.0,68586.0,0.001638]
[1730612735336,0.47395181,68587.0,68586.0,0.001638]
[1730612736377,0.53938657,68587.0,68586.0,0.001638]
[1730612739675,0.53942913,68587.0,68586.0,0.001638]
[1730612740335,0.53951736,68587.0,68586.0,0.001638]
[1730612740818,0.47399437,68587.0,68586.0,0.001638]
[1730612741465,0.53952127,68587.0,68586.0,0.001638]
[1730612741901,0.63525338,68587.0,68586.0,0.001638]
[1730612742870,0.63525338,68587.0,68586.0,0.22619989]
[1730612742871,0.004819,68587.0,68586.0,0.22619989]
[1730612743103,0.004819,68587.0,68586.0,0.56183682]
[1730612743104,0.04037049,68587.0,68586.0,0.56183682]
[1730612743347,0.04037049,68587.0,68586.0,0.59019267]
[1730612743579,0.01849265,68587.0,68586.0,0.59019267]
[1730612744013,0.002819,68587.0,68586.0,0.59019267]
[1730612744218,0.01447573,68587.0,68586.0,0.59119267]
[1730612744713,0.01447573,68587.0,68586.0,0.59219267]
[1730612746674,0.000819,68587.0,68586.0,0.67093465]
[1730612748493,0.000819,68587.0,68586.0,0.59217476]
[1730612749436,0.000819,68587.0,68586.0,0.58507693]
[1730612754882,0.002819,68587.0,68586.0,0.35737493]
[1730612755122,0.002819,68587.0,68586.0,0.39523704]
[1730612755253,0.000819,68587.0,68586.0,0.39523704]
[1730612755443,0.014439,68587.0,68586.0,0.39523704]
[1730612756140,0.014439,68587.0,68586.0,0.39423704]
[1730612756345,0.014439,68587.0,68586.0,0.39523704]
[1730612756873,0.014439,68587.0,68586.0,0.39423704]
[1730612757081,0.014439,68587.0,68586.0,0.39523704]
[1730612757284,0.01443862,68587.0,68586.0,0.39523704]
[1730612757500,0.01443862,68587.0,68586.0,0.39423704]
[1730612757897,0.01443862,68587.0,68586.0,0.002638]
[1730612758114,0.01497178,68587.0,68586.0,0.002638]
[1730612758323,0.01697178,68587.0,68586.0,0.003638]
[1730612758527,0.01497178,68587.0,68586.0,0.003638]
[1730612758747,0.01497178,68587.0,68586.0,0.002638]
[1730612758966,0.01497178,68587.0,68586.0,0.003638]
[1730612759196,0.01497178,68587.0,68586.0,0.002638]
[1730612759405,0.01497178,68587.0,68586.0,0.001638]
[1730612759637,0.01497178,68587.0,68586.0,0.002638]
[1730612759930,0.01497178,68587.0,68586.0,0.001638]
[1730612760336,0.01697178,68587.0,68586.0,0.002638]
[1730612761163,0.01697385,68587.0,68586.0,0.002638]
[1730612761379,0.01697385,68587.0,68586.0,0.003638]
[1730612761839,0.01697485,68587.0,68586.0,0.003638]
[1730612762655,0.03877382,68587.0,68586.0,0.003638]
[1730612763324,0.03877382,68587.0,68586.0,0.002638]
[1730612763766,0.03877617,68587.0,68586.0,0.003638]
[1730612764207,0.03877617,68587.0,68586.0,0.002638]
[1730612764867,0.03877617,68587.0,68586.0,0.001638]
[1730612765096,0.03877617,68587.0,68586.0,0.002638]
[1730612765321,0.03877617,68587.0,68586.0,0.001638]
[1730612765747,0.025158,68587.0,68586.0,0.002638]
[1730612765969,0.03878665,68587.0,68586.0,0.003638]
[1730612766399,0.03878665,68587.0,68586.0,0.002638]
[1730612766836,0.03878665,68587.0,68586.0,0.003638]
[1730612767254,0.00335216,68587.0,68586.0,0.003638]
[1730612767473,0.03880118,68587.0,68586.0,0.003638]
[1730612768145,0.18960118,68587.0,68586.0,0.003638]
[1730612768564,0.18960118,68587.0,68586.0,0.002638]
[1730612768777,0.18960118,68587.0,68586.0,0.003638]
[1730612769019,0.18960118,68587.0,68586.0,0.002638]
[1730612769452,0.23790118,68587.0,68586.0,0.001638]
[1730612769670,0.31790118,68587.0,68586.0,0.001638]
[1730612769894,0.14652491,68587.0,68586.0,0.002638]
[1730612770100,0.12380118,68587.0,68586.0,0.002638]
[1730612770320,0.12380118,68587.0,68586.0,0.001638]
[1730612770321,0.14652491,68587.0,68586.0,0.001638]
[1730612770752,0.12580118,68587.0,68586.0,0.001638]
[1730612771193,0.12780118,68587.0,68586.0,0.001638]
[1730612771426,0.12383384,68587.0,68586.0,0.001638]
[1730612771673,0.12883384,68587.0,68586.0,0.002638]
[1730612772543,0.12383384,68587.0,68586.0,0.001638]
[1730612772991,0.12883384,68587.0,68586.0,0.001638]
[1730612773206,0.12983384,68587.0,68586.0,0.001638]
[1730612774364,0.12883384,68587.0,68586.0,0.001638]
[1730612774578,0.12383384,68587.0,68586.0,0.001638]
[1730612775014,0.09335216,68587.0,68586.0,0.002638]
[1730612775231,0.12384061,68587.0,68586.0,0.001638]
[1730612775691,0.12484061,68587.0,68586.0,0.001638]
[1730612775903,0.12584061,68587.0,68586.0,0.001638]
[1730612778645,0.1258457,68587.0,68586.0,0.001638]
[1730612779632,0.1741457,68587.0,68586.0,0.001638]
[1730612783283,0.1731457,68587.0,68586.0,0.001638]
[1730612784109,0.1721457,68587.0,68586.0,0.001638]
[1730612784367,0.1721457,68587.0,68586.0,0.002638]
[1730612785236,0.3179457,68587.0,68586.0,0.001638]
[1730612785682,0.28245216,68587.0,68586.0,0.002638]
[1730612785912,0.31275112,68587.0,68586.0,0.003638]
[1730612786538,0.31275112,68587.0,68586.0,0.002638]
[1730612786768,0.31275112,68587.0,68586.0,0.003638]
[1730612787024,0.39151101,68587.0,68586.0,0.003638]
[1730612787219,0.39151101,68587.0,68586.0,0.001638]
[1730612787428,0.39151101,68587.0,68586.0,0.002638]
[1730612787637,0.39151101,68587.0,68586.0,0.003638]
[1730612787845,0.39151101,68587.0,68586.0,0.002638]
[1730612788095,0.39651101,68587.0,68586.0,0.003638]
[1730612788860,0.39651101,68587.0,68586.0,0.002638]
[1730612789080,0.40151101,68587.0,68586.0,0.002638]
[1730612789456,0.53013851,68587.0,68586.0,0.002638]
[1730612789670,0.40151101,68587.0,68586.0,0.002638]
[1730612792258,0.55730805,68587.0,68586.0,0.002638]
[1730612792702,0.56543328,68587.0,68586.0,0.002638]
[1730612792890,0.60094783,68587.0,68586.0,0.002638]
[1730612793304,0.74677357,68587.0,68586.0,0.002638]
[1730612793762,0.84735744,68587.0,68586.0,0.002638]
[1730612793983,0.94361641,68587.0,68586.0,0.002638]
[1730612794194,1.45391641,68587.0,68586.0,0.002638]
[1730612794636,1.30809067,68587.0,68586.0,0.002638]
[1730612794836,1.41724398,68587.0,68586.0,0.002638]
[1730612795503,1.22933078,68587.0,68586.0,0.002638]
[1730612795727,1.33848409,68587.0,68586.0,0.002638]
[1730612796182,1.22933078,68587.0,68586.0,0.002638]
[1730612797027,1.33848409,68587.0,68586.0,0.002638]
[1730612797238,1.22933078,68587.0,68586.0,0.002638]
[1730612799097,1.31658041,68587.0,68586.0,0.002638]
[1730612799297,1.30809067,68587.0,68586.0,0.002638]
[1730612799536,1.45391641,68587.0,68586.0,0.002638]
[1730612800408,1.56306972,68587.0,68586.0,0.002638]
[1730612801218,1.45391641,68587.0,68586.0,0.002638]
[1730612803884,1.45387741,68587.0,68586.0,0.002638]
[1730612804465,1.54117195,68587.0,68586.0,0.002638]
[1730612804903,1.45387741,68587.0,68586.0,0.002638]
[1730612805344,1.45587741,68587.0,68586.0,0.002638]
[1730612805792,1.45387741,68587.0,68586.0,0.002638]
[1730612806872,1.09099178,68587.0,68586.0,0.002638]
[1730612807108,0.70552296,68587.0,68586.0,0.002638]
[1730612807347,0.71916636,68587.0,68586.0,0.002638]
[1730612809152,1.0057634,68587.0,68586.0,0.002638]
[1730612809366,1.04940565,68587.0,68586.0,0.002638]
[1730612809581,1.04298397,68587.0,68586.0,0.002638]
[1730612810269,1.1084511,68587.0,68586.0,0.002638]
[1730612810743,1.04299687,68587.0,68586.0,0.002638]
[1730612810975,1.108464,68587.0,68586.0,0.002638]
[1730612812534,1.09482005,68587.0,68586.0,0.002638]
[1730612812763,1.10847238,68587.0,68586.0,0.002638]
[1730612813316,1.20420994,68587.0,68586.0,0.002638]
[1730612813528,1.04300525,68587.0,68586.0,0.002638]
[1730612814184,1.20422229,68587.0,68586.0,0.002638]
[1730612814400,1.10851477,68587.0,68586.0,0.002638]
[1730612814605,1.04301733,68587.0,68586.0,0.002638]
[1730612815650,1.20424195,68587.0,68586.0,0.002638]
[1730612815855,1.04301733,68587.0,68586.0,0.002638]
[1730612816059,1.09488689,68587.0,68586.0,0.002638]
[1730612816256,1.02937317,68587.0,68586.0,0.002638]
[1730612816661,1.09488704,68587.0,68586.0,0.002638]
[1730612816875,1.1906001,68587.0,68586.0,0.002638]
[1730612817491,1.1906001,68587.0,68583.0,0.001638]
[1730612817492,0.15893441,68584.0,68583.0,0.001638]
[1730612817697,1.23756653,68584.0,68583.0,0.001638]
[1730612817918,1.20205838,68584.0,68583.0,0.001638]
[1730612818119,1.36853291,68584.0,68583.0,0.001638]
[1730612818977,1.26558907,68584.0,68583.0,0.003638]
[1730612819197,1.38844892,68584.0,68583.0,0.003638]
[1730612820283,1.37444892,68584.0,68583.0,0.002638]
[1730612820491,1.37444892,68584.0,68583.0,0.001638]
[1730612820694,1.38844892,68584.0,68583.0,0.002638]
[1730612821108,1.51939276,68584.0,68583.0,0.002638]
[1730612821325,1.56298362,68584.0,68583.0,0.002638]
[1730612821536,1.38844892,68584.0,68583.0,0.002638]
[1730612822382,0.00812841,68574.0,68573.0,0.21783925]
[1730612822593,0.77854599,68574.0,68573.0,0.21783925]
[1730612822804,0.150832,68572.0,68571.0,0.001636]
[1730612823040,0.18636269,68572.0,68571.0,0.001636]
[1730612823917,0.150832,68572.0,68571.0,0.001636]
[1730612824144,0.2351748,68572.0,68571.0,0.001636]
[1730612824364,0.23517082,68572.0,68571.0,0.001636]
[1730612824811,0.24817082,68572.0,68571.0,0.002636]
[1730612825741,0.20245377,68572.0,68571.0,0.002636]
[1730612827580,0.45016843,68572.0,68571.0,0.002636]
[1730612828039,0.96045784,68572.0,68571.0,0.002636]
[1730612828936,0.88169795,68572.0,68571.0,0.002636]
[1730612829155,1.32527935,68572.0,68571.0,0.002636]
[1730612829381,1.36718946,68572.0,68571.0,0.002636]
[1730612829621,1.45447783,68572.0,68571.0,0.002636]
[1730612829843,1.36718946,68572.0,68571.0,0.002636]
[1730612831264,1.46718946,68572.0,68571.0,0.002636]
[1730612832171,1.45418946,68572.0,68571.0,0.001636]
[1730612832601,1.67988191,68572.0,68571.0,0.00064153]
[1730612833460,1.47018946,68572.0,68571.0,0.00064153]
[1730612833718,1.61501818,68572.0,68571.0,0.00064153]
[1730612833953,1.61501818,68572.0,68556.0,0.21902447]
[1730612833954,0.15399241,68557.0,68556.0,0.21902447]
[1730612834177,0.98128205,68557.0,68556.0,0.21902447]
[1730612834396,0.96588281,68557.0,68556.0,0.21902447]
[1730612834638,0.14900641,68550.0,68544.0,0.00218806]
[1730612834861,0.18449977,68550.0,68544.0,0.00218806]
[1730612835072,0.145889,68545.0,68544.0,0.00218806]
[1730612835532,0.01361621,68545.0,68544.0,0.00218806]
[1730612835758,0.15950521,68545.0,68544.0,0.00218806]
[1730612836402,0.01361621,68545.0,68544.0,0.00218806]
[1730612836621,0.01361621,68545.0,68544.0,0.04918806]
[1730612836838,0.01674462,68545.0,68544.0,0.04918806]
[1730612837318,0.01674462,68545.0,68544.0,0.05018806]
[1730612837529,0.01674462,68545.0,68544.0,0.04918806]
[1730612838222,0.01674118,68545.0,68544.0,0.04918806]
[1730612839989,0.03518164,68545.0,68544.0,0.047]
[1730612840227,0.01674118,68545.0,68544.0,0.047]
[1730612840436,0.01674118,68545.0,68544.0,0.048638]
[1730612841821,0.01674652,68545.0,68544.0,0.048638]
[1730612843005,0.01674652,68545.0,68544.0,0.194529]
[1730612843549,0.01674652,68545.0,68544.0,0.048638]
[1730612845064,0.03518847,68545.0,68544.0,0.048638]
[1730612845265,0.01674652,68545.0,68544.0,0.048638]
[1730612846368,0.0385355,68545.0,68544.0,0.048638]
[1730612846792,0.0385355,68545.0,68544.0,0.001638]
[1730612847231,0.01674652,68545.0,68544.0,0.001638]
[1730612847442,0.0385355,68545.0,68544.0,0.001638]
[1730612847678,0.00312841,68545.0,68544.0,0.001638]
[1730612847898,0.03859384,68545.0,68544.0,0.001638]
[1730612849755,0.03859384,68545.0,68544.0,0.147529]
[1730612851089,0.03859384,68545.0,68544.0,0.001638]
[1730612851736,0.19664129,68545.0,68544.0,0.001638]
[1730612851950,0.18449506,68545.0,68544.0,0.001638]
[1730612852369,0.23419506,68545.0,68544.0,0.001638]
[1730612853026,0.23519506,68545.0,68544.0,0.001638]
[1730612853672,0.23419506,68545.0,68544.0,0.001638]
[1730612853898,0.32584446,68545.0,68544.0,0.001638]
[1730612854362,0.48460435,68545.0,68544.0,0.001638]
[1730612854580,0.48260435,68545.0,68544.0,0.001638]
[1730612854790,0.48560435,68545.0,68544.0,0.001638]
[1730612855212,0.48260435,68545.0,68544.0,0.001638]
[1730612855423,0.48060435,68545.0,68544.0,0.001638]
[1730612855649,0.4471267,68545.0,68544.0,0.001638]
[1730612855864,0.48061426,68545.0,68544.0,0.001638]
[1730612856072,0.4451267,68545.0,68544.0,0.001638]
[1730612856378,0.45977919,68545.0,68544.0,0.001638]
[1730612856601,0.46697069,68545.0,68544.0,0.001638]
[1730612856818,0.50246791,68545.0,68544.0,0.001638]
[1730612857029,0.50846791,68545.0,68544.0,0.001638]
[1730612857259,0.51446791,68545.0,68544.0,0.001638]
[1730612857467,0.49481339,68545.0,68544.0,0.001638]
[1730612857698,0.50846508,68545.0,68544.0,0.001638]
[1730612857922,0.51646508,68545.0,68544.0,0.001638]
[1730612858121,0.50846508,68545.0,68544.0,0.001638]
[1730612858332,0.41281568,68545.0,68544.0,0.001638]
[1730612858550,0.42381568,68545.0,68544.0,0.001638]
[1730612858758,0.43081568,68545.0,68544.0,0.001638]
[1730612859205,0.42381568,68545.0,68544.0,0.001638]
[1730612859407,0.43381568,68545.0,68544.0,0.001638]
[1730612859842,0.43381497,68545.0,68544.0,0.001638]
[1730612861346,0.53655037,68545.0,68544.0,0.001638]
[1730612862707,0.43381497,68545.0,68544.0,0.001638]
[1730612863114,0.43881497,68545.0,68544.0,0.001638]
[1730612864015,0.43879713,68545.0,68544.0,0.001638]
[1730612866013,0.43872418,68545.0,68544.0,0.001638]
[1730612866677,0.41688019,68545.0,68544.0,0.001638]
[1730612868038,0.41686491,68545.0,68544.0,0.001638]
[1730612868279,0.38140435,68545.0,68544.0,0.001638]
[1730612868517,0.40868055,68545.0,68544.0,0.001638]
[1730612868738,0.43050152,68545.0,68544.0,0.001638]
[1730612869634,0.34674163,68545.0,68544.0,0.001638]
[1730612871159,0.35174163,68545.0,68544.0,0.001638]
[1730612871386,0.45314568,68545.0,68544.0,0.001638]
[1730612872982,0.35174163,68545.0,68544.0,0.001638]
[1730612873648,0.34674163,68545.0,68544.0,0.001638]
[1730612873863,0.35174163,68545.0,68544.0,0.001638]
[1730612875614,0.35256063,68545.0,68544.0,0.001638]
[1730612876253,0.33074677,68545.0,68544.0,0.001638]
[1730612876484,0.09582245,68545.0,68544.0,0.001638]
[1730612876711,0.07399011,68545.0,68544.0,0.001638]
[1730612876944,0.06035201,68545.0,68544.0,0.001638]
[1730612880579,0.060375,68545.0,68544.0,0.001638]
[1730612881052,0.06037505,68545.0,68544.0,0.001638]
[1730612881738,0.20626405,68545.0,68544.0,0.001638]
[1730612882413,0.22902084,68545.0,68544.0,0.001638]
[1730612882629,0.08313184,68545.0,68544.0,0.001638]
[1730612883118,0.06037505,68545.0,68544.0,0.001638]
[1730612883320,0.08313184,68545.0,68544.0,0.001638]
[1730612883536,0.08316043,68545.0,68544.0,0.001638]
[1730612884203,0.22904943,68545.0,68544.0,0.001638]
[1730612884699,0.08316043,68545.0,68544.0,0.001638]
[1730612885831,0.06039247,68545.0,68544.0,0.001638]
[1730612887495,0.04672952,68545.0,68544.0,0.001638]
[1730612887717,0.06038893,68545.0,68544.0,0.001638]
[1730612891354,0.06038554,68545.0,68544.0,0.001638]
[1730612891814,0.06038506,68545.0,68544.0,0.001638]
[1730612893198,0.39874422,68545.0,68544.0,0.001638]
[1730612894302,0.90904422,68545.0,68544.0,0.001638]
[1730612895672,0.90904776,68545.0,68544.0,0.001638]
[1730612896603,0.95271367,68545.0,68544.0,0.001638]
[1730612899237,0.95271519,68545.0,68544.0,0.001638]
[1730612902050,0.88494503,68545.0,68544.0,0.001638]
[1730612902286,0.84127912,68545.0,68544.0,0.001638]
[1730612903272,0.84127011,68545.0,68544.0,0.001638]
[1730612903711,0.88495062,68545.0,68544.0,0.001638]
[1730612906547,0.88493876,68545.0,68544.0,0.001638]
[1730612907276,0.84125825,68545.0,68544.0,0.001638]
[1730612907682,0.88493876,68545.0,68544.0,0.001638]
[1730612910196,0.87128276,68545.0,68544.0,0.001638]
[1730612910464,0.884932,68545.0,68544.0,0.001638]
[1730612912194,0.84125149,68545.0,68544.0,0.001638]
[1730612912414,0.88491302,68545.0,68544.0,0.001638]
[1730612913277,0.84125149,68545.0,68544.0,0.001638]
[1730612914031,0.88491179,68545.0,68544.0,0.001638]
[1730612914448,0.84124498,68545.0,68544.0,0.001638]
[1730612915727,0.88491106,68545.0,68544.0,0.001638]
[1730612915935,0.84124498,68545.0,68544.0,0.001638]
[1730612917781,0.84125052,68545.0,68544.0,0.001638]
[1730612918209,0.83306034,68545.0,68544.0,0.001638]
[1730612918421,0.84124828,68545.0,68544.0,0.001638]
[1730612918875,0.69535928,68545.0,68544.0,0.001638]
[1730612919328,0.61775928,68545.0,68544.0,0.001638]
[1730612919539,0.76364828,68545.0,68544.0,0.001638]
[1730612921375,0.61775928,68545.0,68544.0,0.001638]
[1730612921584,0.74180641,68545.0,68544.0,0.001638]
[1730612921813,0.76363513,68545.0,68544.0,0.001638]
[1730612924976,0.74180663,68545.0,68544.0,0.001638]
[1730612925251,0.84673571,68545.0,68544.0,0.001638]
[1730612925684,0.8903863,68545.0,68544.0,0.001638]
[1730612925895,0.89035931,68545.0,68544.0,0.001638]
[1730612926334,0.89515887,68545.0,68544.0,0.001638]
[1730612926547,0.96059427,68545.0,68544.0,0.001638]
[1730612926761,0.96559427,68545.0,68544.0,0.001638]
[1730612927186,0.90015887,68545.0,68544.0,0.001638]
[1730612927393,1.05647308,68545.0,68544.0,0.001638]
[1730612928444,1.05645773,68545.0,68544.0,0.001638]
[1730612932168,1.02100083,68545.0,68544.0,0.001638]
[1730612932378,1.05645545,68545.0,68544.0,0.001638]
[1730612933463,1.14370265,68545.0,68544.0,0.001638]
[1730612934973,1.14369941,68545.0,68544.0,0.001638]
[1730612938706,1.39507028,68545.0,68544.0,0.001638]
[1730612938957,1.31631039,68545.0,68544.0,0.001638]
[1730612939602,1.31630587,68545.0,68544.0,0.001638]
[1730612941644,1.28599606,68545.0,68544.0,0.001638]
[1730612941883,1.25054596,68545.0,68544.0,0.001638]
[1730612942093,1.2859929,68545.0,68544.0,0.001638]
[1730612942547,1.2879929,68545.0,68544.0,0.001638]
[1730612945565,1.2879804,68545.0,68544.0,0.001638]
[1730612945798,1.25254596,68545.0,68544.0,0.001638]
[1730612946022,1.27435177,68545.0,68544.0,0.001638]
[1730612946688,1.2879804,68545.0,68544.0,0.001638]
[1730612947531,1.23755724,68545.0,68544.0,0.001638]
[1730612947742,1.15879735,68545.0,68544.0,0.001638]
[1730612948691,1.26792859,68545.0,68544.0,0.001638]
[1730612949832,1.15879735,68545.0,68544.0,0.001638]
[1730612950043,1.26792859,68545.0,68544.0,0.001638]
[1730612950296,1.41375433,68545.0,68544.0,0.001638]
[1730612951886,1.41328298,68545.0,68544.0,0.001638]
[1730612952543,1.26873623,68545.0,68544.0,0.001638]
[1730612952767,1.15837465,68545.0,68544.0,0.001638]
[1730612956520,1.158317,68545.0,68544.0,0.001638]
[1730612956757,1.12285284,68545.0,68544.0,0.001638]
[1730612956982,1.1583253,68545.0,68544.0,0.001638]
[1730612957197,1.30415104,68545.0,68544.0,0.001638]
[1730612957638,1.39142462,68545.0,68544.0,0.001638]
[1730612958961,1.35595216,68545.0,68544.0,0.001638]
[1730612961884,1.21012642,68545.0,68544.0,0.001638]
[1730612963860,1.21020434,68545.0,68544.0,0.001638]
[1730612964289,1.24566972,68545.0,68544.0,0.001638]
[1730612965594,1.15842003,68545.0,68544.0,0.001638]
[1730612965805,1.15841037,68545.0,68544.0,0.001638]
[1730612968469,1.2674802,68545.0,68544.0,0.001638]
[1730612970510,1.26726379,68545.0,68544.0,0.001638]
[1730612970993,0.99930665,68545.0,68544.0,0.001638]
[1730612971206,0.71652884,68545.0,68544.0,0.001638]
[1730612971641,0.78200068,68545.0,68544.0,0.001638]
[1730612971888,0.78700068,68545.0,68544.0,0.001638]
[1730612973897,0.72152884,68545.0,68544.0,0.001638]
[1730612974346,0.78700068,68545.0,68544.0,0.001638]
[1730612974761,0.72152884,68545.0,68544.0,0.001638]
[1730612975222,0.787001,68545.0,68544.0,0.001638]
[1730612975452,0.72152884,68545.0,68544.0,0.001638]
[1730612976349,1.03975027,68545.0,68544.0,0.001638]
[1730612977225,1.0397485,68545.0,68544.0,0.001638]
[1730612979397,1.03974749,68545.0,68544.0,0.001638]
[1730612980035,0.91779822,68545.0,68544.0,0.001638]
[1730612983814,0.88233461,68545.0,68544.0,0.001638]
[1730612984038,0.91779929,68545.0,68544.0,0.001638]
[1730612987973,0.88233461,68545.0,68544.0,0.001638]
[1730612988183,0.91780238,68545.0,68544.0,0.001638]
[1730612989428,0.91780355,68545.0,68544.0,0.001638]
[1730612991721,0.91780438,68545.0,68544.0,0.001638]
[1730612993475,0.91780256,68545.0,68544.0,0.001638]
[1730612994146,1.03618896,68545.0,68544.0,0.001638]
[1730612994398,1.181986,68545.0,68544.0,0.001638]
[1730612994621,1.11651667,68545.0,68544.0,0.001638]
[1730612995261,1.1165166,68545.0,68544.0,0.001638]
[1730612996131,1.43832465,68545.0,68544.0,0.001638]
[1730612996366,1.35103221,68545.0,68544.0,0.001638]
[1730612998837,1.35303221,68545.0,68544.0,0.001638]
[1730612999056,1.35302248,68545.0,68544.0,0.001638]
[1730612999518,1.35102248,68545.0,68544.0,0.001638]
[1730613001498,1.3499619,68545.0,68544.0,0.001638]
[1730613003340,1.53072179,68545.0,68544.0,0.001638]
[1730613003547,0.14898546,68526.0,68525.0,0.21902447]
[1730613003781,0.22774535,68526.0,68525.0,0.21902447]
[1730613003989,0.26320532,68526.0,68525.0,0.21902447]
[1730613004211,0.145944,68519.0,68518.0,0.21902447]
[1730613004426,0.18140397,68519.0,68518.0,0.21902447]
[1730613004637,0.145947,68518.0,68514.0,0.04815]
[1730613004852,0.14900246,68518.0,68514.0,0.04815]
[1730613005066,0.18446243,68518.0,68515.0,0.00710926]
[1730613005287,0.14900246,68518.0,68514.0,0.00165]
[1730613005544,0.18441818,68518.0,68514.0,0.00165]
[1730613005749,0.18441818,68518.0,68515.0,0.0071091]
[1730613006013,0.18441818,68518.0,68514.0,0.00165]
[1730613007341,0.29829989,68518.0,68514.0,0.00165]
[1730613007976,0.37705978,68518.0,68514.0,0.00165]
[1730613008204,0.45615978,68518.0,68514.0,0.00165]
[1730613008413,0.46415978,68518.0,68514.0,0.00165]
[1730613008648,0.46015978,68518.0,68514.0,0.00165]
[1730613008863,0.46715978,68518.0,68514.0,0.00165]
[1730613009081,0.46315978,68518.0,68514.0,0.00165]
[1730613009296,0.47015978,68518.0,68514.0,0.00165]
[1730613010441,0.46315978,68518.0,68514.0,0.00165]
[1730613010684,0.45615978,68518.0,68514.0,0.00165]
[1730613010907,0.47015978,68518.0,68514.0,0.00165]
[1730613011136,0.47915978,68518.0,68514.0,0.00165]
[1730613011365,0.47015978,68518.0,68514.0,0.00165]
[1730613011590,0.48115978,68518.0,68514.0,0.00165]
[1730613011809,0.61795682,68518.0,68514.0,0.00165]
[1730613012050,1.16635682,68518.0,68514.0,0.00165]